[Event "Champions Showdown Kings Rapid 2019-D"]
[Site "Saint Louis"]
[Date "2019.02.21"]
[Round "5.4"]
[White "Topalov, Veselin"]
[Black "Dominguez Perez, Leinier"]
[Result "1/2-1/2"]
[ECO "C54"]
[WhiteElo "2740"]
[BlackElo "2739"]
[Annotator "ChessBase"]
[PlyCount "139"]
[EventDate "2019.02.09"]
[EventType "match (rapid)"]
[EventCountry "USA"]
[SourceTitle "playchess.com"]
[Source "ChessBase"]
[SourceQuality "1"]
[TimeControl "900+10"]

1. e4 {[%emt 0:00:00]} e5 {[%emt 0:00:00]} 2. Nf3 {[%emt 0:00:00]} Nc6 {[%emt 0:00:00]} 3. Bc4 {[%emt 0:00:00]} Bc5 {[%emt 0:00:00]} 4. c3 {[%emt 0:00:00]} Nf6 {[%emt 0:00:00]} 5. d3 {[%emt 0:00:01]} O-O {[%emt 0:00:07]} 6. Bg5 {[%emt 0:00:04]} h6 {[%emt 0:00:14]} 7. Bh4 {[%emt 0:00:01]} Be7 {[%emt 0:00:07]} 8. Nbd2 {[%emt 0:00:13]} d6 {[%emt 0:00:07]} 9. a4 {[%emt 0:00:02]} Nh5 {[%emt 0:01:04]} 10. Bg3 {[%emt 0:00:03]} Nxg3 {[%emt 0:00:48]} 11. hxg3 {[%emt 0:00:02]} Nb8 {[%emt 0:00:45]} 12. O-O {[%emt 0:01:09]} Nd7 {[%emt 0:00:07]} 13. Re1 {[%emt 0:00:13]} c6 {[%emt 0:00:07]} 14. d4 {[%emt 0:00:48]} Qc7 {[%emt 0:01:16]} 15. Bb3 {[%emt 0:00:42]} g6 {[%emt 0:01:25]} 16. Nc4 {[%emt 0:00:16]} Kg7 {[%emt 0:00:08]} 17. Qd2 {[%emt 0:01:11]} Rd8 {[%emt 0:00:19]} 18. Qc2 {[%emt 0:00:54]} Nb6 {[%emt 0:01:33]} 19. Ne3 {[%emt 0:00:17]} Nd7 {[%emt 0:00:02]} 20. Rad1 {[%emt 0:01:34]} Nf6 {[%emt 0:00:02]} 21. Nh2 {[%emt 0:00:05]} h5 {[%emt 0:02:34]} 22. f4 {[%emt 0:00:37]} h4 {[%emt 0:00:38]} 23. fxe5 {[%emt 0:00:17]} dxe5 {[%emt 0:00:01]} 24. gxh4 {[%emt 0:00:02]} exd4 {[%emt 0:00:02]} 25. cxd4 {[%emt 0:00:02]} Qg3 {[%emt 0:00:09]} 26. Nf3 {[%emt 0:00:37]} Nh5 {[%emt 0:00:34]} 27. Nf1 {[%emt 0:00:29]} Qf4 {[%emt 0:00:17]} 28. Qf2 {[%emt 0:00:15]} Bg4 {[%emt 0:02:18]} 29. Rd3 {[%emt 0:00:19]} Rf8 {[%emt 0:00:16]} 30. g3 {[%emt 0:00:23]} Qf6 {[%emt 0:00:57]} 31. N1h2 {[%emt 0:00:35]} Be6 {[%emt 0:00:05]} 32. Bxe6 {[%emt 0:01:19]} Qxe6 {[%emt 0:00:02]} 33. b3 {[%emt 0:01:13]} Rad8 {[%emt 0:00:21]} 34. Kg2 {[%emt 0:00:07]} a5 {[%emt 0:00:43]} 35. Qe3 {[%emt 0:01:05]} Nf6 {[%emt 0:01:25]} 36. Ng5 {[%emt 0:00:04]} Qd7 {[%emt 0:00:10]} 37. Rf1 {[%emt 0:01:05]} Ng4 {[%emt 0:00:39]} 38. Nxg4 {[%emt 0:00:06]} Qxg4 {[%emt 0:00:02]} 39. Nf3 {[%emt 0:00:31]} Bd6 {[%emt 0:00:19]} 40. Qe1 {[%emt 0:00:14]} Rh8 {[%emt 0:00:47]} 41. Nh2 {[%emt 0:00:52]} Qe6 {[%emt 0:00:02]} 42. Rf2 {[%emt 0:00:36]} Rhe8 {[%emt 0:00:31]} 43. Re2 {[%emt 0:00:09]} f5 {[%emt 0:00:28]} 44. Rde3 {[%emt 0:00:35]} f4 {[%emt 0:00:10]} 45. gxf4 {[%emt 0:00:08]} Bxf4 {[%emt 0:00:02]} 46. Rd3 {[%emt 0:00:03]} Bxh2 {[%emt 0:00:07]} 47. Kxh2 {[%emt 0:00:01]} Rxd4 {[%emt 0:00:10]} 48. Rxd4 {[%emt 0:00:12]} Qe5+ {[%emt 0:00:01]} 49. Kg2 {[%emt 0:00:13]} Qxd4 {[%emt 0:00:01]} 50. Qxa5 {[%emt 0:00:03]} Rxe4 {[%emt 0:00:33]} 51. Rxe4 {[%emt 0:01:02]} Qxe4+ {[%emt 0:00:02]} 52. Kg3 {[%emt 0:00:00]} Qe3+ {[%emt 0:00:41]} 53. Kg4 {[%emt 0:00:02]} Qe4+ {[%emt 0:00:15]} 54. Kg3 {[%emt 0:00:14]} Qd3+ {[%emt 0:00:02]} 55. Kg4 {[%emt 0:00:02]} Qd1+ {[%emt 0:00:05]} 56. Kf4 {[%emt 0:00:05]} Qd4+ {[%emt 0:00:14]} 57. Kg5 {[%emt 0:00:22]} Qg1+ {[%emt 0:00:23]} 58. Kf4 {[%emt 0:00:01]} Qd4+ {[%emt 0:00:03]} 59. Kg5 {[%emt 0:00:02]} Qe3+ {[%emt 0:00:01]} 60. Kg4 {[%emt 0:00:19]} Qxb3 {[%emt 0:00:00]} 61. Qe5+ {[%emt 0:00:02]} Kf8 {[%emt 0:00:00]} 62. Qb8+ {[%emt 0:00:23]} Ke7 {[%emt 0:00:12]} 63. Qc7+ {[%emt 0:00:05]} Ke6 {[%emt 0:00:16]} 64. Qc8+ {[%emt 0:00:06]} Kd6 {[%emt 0:00:40]} 65. Qd8+ {[%emt 0:00:05]} Kc5 {[%emt 0:00:09]} 66. Qf8+ {[%emt 0:00:06]} Kb6 {[%emt 0:00:10]} 67. Qd8+ {[%emt 0:00:02]} Ka6 {[%emt 0:00:09]} 68. Qa8+ {[%emt 0:00:01]} Kb6 {[%emt 0:00:01]} 69. Qd8+ {[%emt 0:00:01]} Ka6 {[%emt 0:00:15]} 70. Qa8+ 1/2-1/2